[Event "IX Iberoamericano Championship 2023"]
[Site "Panama City"]
[Date "2023.11.29"]
[Round "5.6"]
[White "Hernandez Montes, Jhon Sebastian"]
[Black "Berdayes Ason, Dylan Isidro"]
[Result "1/2-1/2"]
[ECO "C78"]
[WhiteElo "2280"]
[BlackElo "2507"]
[Annotator "TA"]
[PlyCount "120"]
[EventDate "2023.11.27"]
[EventType "swiss"]
[EventCountry "PAN"]
[SourceTitle "playchess.com"]
[Source "ChessBase"]
[SourceQuality "1"]
[TimeControl "5400+30"]

{[%evp 19,120,17,22,11,15,-37,0,0,18,26,44,0,0,0,0,-9,0,0,5,0,6,9,24,0,57,14,58,58,82,16,99,8,16,17,21,6,45,35,66,60,61,20,76,43,58,45,37,46,54,39,79,82,88,77,81,73,102,62,61,51,55,50,61,25,35,39,37,33,30,20,103,111,109,111,270,271,266,274,269,207,209,204,194,208,198,204,268,264,274,270,281,302,304,295,280,279,12837,0,0,0,0,0,0]} 1. e4 {[%emt 0:02:35]} e5 {[%emt 0:00:15]} 2. Nf3 {[%emt 0:00:10]} Nc6 {[%emt 0:00:02]} 3. Bb5 {[%emt 0:00:10]} a6 {[%emt 0:00:03]} 4. Ba4 {[%emt 0:00:06]} Nf6 {[%emt 0:00:34]} 5. d3 {[%emt 0:00:08]} b5 {[%emt 0:00:16]} 6. Bb3 {[%emt 0:00:02]} Bc5 {[%emt 0:00:03]} 7. c3 {[%emt 0:01:43]} d6 {[%emt 0:00:05]} 8. O-O {[%emt 0:00:37]} O-O {[%emt 0:00:24]} 9. a4 {[%emt 0:04:20]} Rb8 {[%emt 0:00:08]} 10. axb5 {[%emt 0:06:12]} axb5 {[%emt 0:00:02]} 11. Bg5 {[%emt 0:01:24] C78: Ruy Lopez: Archangelsk and Möller Defences.} h6 {[%emt 0:00:09]} 12. Be3 {[%emt 0:02:00] [#]} (12. Bh4 $11) 12... Re8 $146 {[%emt 0:05:41]} ({Predecessor:} 12... Bb6 13. Na3 Ne7 14. Bxb6 Rxb6 15. Nc2 Ng6 16. Ne3 Nf4 17. Ra8 Ra6 18. Rxa6 Bxa6 {½-½ Shubin,K (2298)-Golding,A (1958) EU-ch U14 26th 2016 (2)}) 13. Nbd2 {[%emt 0:05:02]} Ng4 {[%emt 0:03:00]} 14. Qe2 {[%emt 0:05:55]} Rf8 {[%emt 0:17:27]} 15. h3 {[%emt 0:12:12]} (15. Bxc5 $14 dxc5 16. Rfd1) 15... Nxe3 $11 {[%emt 0:00:12]} 16. fxe3 {[%emt 0:00:03]} Bb6 {[%emt 0:07:11]} 17. Kh1 {[%emt 0:02:20]} Na5 {[%emt 0:02:28]} 18. Ba2 {[%emt 0:02:18]} Qe7 {[%emt 0:03:50]} 19. b4 {[%emt 0:03:24]} Nb7 {[%emt 0:02:08]} 20. d4 {[%emt 0:00:42]} Bd7 {[%emt 0:00:32]} 21. Qf2 {[%emt 0:02:39]} Be6 {[%emt 0:03:19]} ({Better is} 21... Nd8 $11) 22. Qg3 {[%emt 0:05:09]} (22. dxe5 dxe5 23. Bxe6 Qxe6 $17) 22... Ra8 {[%emt 0:04:37]} 23. Bxe6 {[%emt 0:03:32]} Qxe6 {[%emt 0:00:09]} 24. Nh4 {[%emt 0:06:08]} (24. dxe5 Bxe3 25. exd6 Qxd6 26. Qxd6 Nxd6 $15) ({White should play} 24. Rxa8 $1 $16 Rxa8 25. Nh4) 24... Kh7 {[%emt 0:02:02]} (24... Rxa1 $11 {keeps the balance.} 25. Rxa1 g6) 25. Qf3 {[%emt 0:00:40]} (25. Nf5 $16 {[%csl Gf5][%cal Rg3g7]} g6 26. Nh4) 25... Rxa1 {[%emt 0:04:37]} 26. Rxa1 {[%emt 0:00:27]} g6 {[%emt 0:00:51]} 27. Qf1 {[%emt 0:01:48]} Qd7 {[%emt 0:01:19]} 28. Qd3 {[%emt 0:00:24]} exd4 {[%emt 0:02:10]} 29. exd4 {[%emt 0:01:47]} Nd8 {[%emt 0:00:03]} 30. Rf1 {[%emt 0:01:47][%cal Oh4g6] Threatens to win with Nxg6!} Kg7 {[%emt 0:07:59]} (30... Ne6 $11) 31. Qg3 {[%emt 0:01:28] Strongly threatening e5.} Ne6 $1 {[%emt 0:01:07]} 32. Nf5+ {[%emt 0:02:25][%cal Bh4f5,Bf5e3,Be3d5][%mdl 32]} Kh7 {[%emt 0:00:06]} 33. Ne3 {[%emt 0:00:08]} c6 {[%emt 0:02:03] Prevents Nd5.} 34. d5 {[%emt 0:04:45]} Ng7 {[%emt 0:03:03]} 35. dxc6 {[%emt 0:00:35]} Qxc6 {[%emt 0:00:03] And now ...Nh5 would win.} 36. Nd5 {[%emt 0:00:18]} Bd8 {[%emt 0:01:00]} 37. Qd3 {[%emt 0:02:18]} Nh5 {[%emt 0:02:02]} 38. g4 {[%emt 0:09:35]} Ng7 {[%emt 0:00:03]} 39. c4 {[%emt 0:00:12]} bxc4 {[%emt 0:00:47]} 40. Qxc4 {[%emt 0:00:27]} Qd7 {[%emt 0:00:44]} 41. b5 {[%emt 0:01:26] Black must now prevent b6. White has more active pieces. The black rooks are badly placed.} h5 $1 {[%emt 0:01:22] Black is weak on the light squares} 42. Qc6 {[%emt 0:00:26]} Qe6 {[%emt 0:00:20]} 43. Nf4 $36 {[%emt 0:00:41][%mdl 2048] Black is under pressure.} Qe5 {[%emt 0:02:16] ...Bg5 is the strong threat.} 44. Nc4 {[%emt 0:02:11][%csl LRd6,LRe5]} (44. Qd5 {simplifies} hxg4 45. Qxe5 dxe5 46. Nd5) 44... Qd4 {[%emt 0:00:54]} (44... Qg5 $1 $11) 45. Qd5 $16 {[%emt 0:00:56]} (45. Nxd6 $6 g5 46. Ng2 (46. Nxh5 Qd3 $11) 46... Qd3 $11) 45... Qc3 {[%emt 0:00:57]} 46. Qd3 {[%emt 0:00:49]} (46. Qxd6 $2 Qxc4 47. Qd3 Qc5 $19) (46. gxh5 $6 Nxh5 47. Nxh5 (47. Qxd6 $2 Qxc4 48. Re1 Bh4 $19) 47... Qxh3+ 48. Kg1 Qg4+ 49. Kh2 Qe2+ 50. Kg1 Qg4+ 51. Kh2 Qe2+ 52. Kg1 Qg4+ $11) 46... Qb4 {[%emt 0:00:57]} (46... Qxd3 $16 47. Nxd3 Bc7) 47. b6 $18 {[%emt 0:01:10]} (47. Qxd6 $2 {is the wrong capture.} Qxc4 48. Qd3 Qc5 $19) (47. Nxd6 $6 Bg5 $16) (47. Rb1 Qc5 48. Nd5 (48. Qxd6 $2 Qxc4 49. Qd5 Qc7 $19) (48. Nxd6 $2 Bc7 $19) 48... hxg4 $16) 47... Bg5 {[%emt 0:04:57]} 48. Nd5 {[%emt 0:02:10]} ({Stronger than} 48. Nxd6 Qxb6 49. e5 Bxf4 50. Rxf4 hxg4 $11) 48... Qb5 {[%emt 0:00:01] [#]} 49. Ne5 {[%emt 0:02:22][%mdl 576] Discovered Attack. A dynamic duo of knights.} Qxd3 {[%emt 0:02:49]} 50. Nxd3 {[%emt 0:00:01] aiming for b7.} Ne6 {[%emt 0:00:24]} 51. e5 {[%emt 0:01:01]} dxe5 {[%emt 0:10:27]} 52. Nxe5 {[%emt 0:00:14][%cal Bd3e5,Be5f7,Bf7d6][%mdl 32]} Nc5 {[%emt 0:00:08]} 53. Rxf7+ {[%emt 0:01:34]} Rxf7 {[%emt 0:00:02]} 54. Nxf7 {[%emt 0:00:01][%mdl 4096] Endgame KBN-KNN} Bh4 {[%emt 0:00:04]} 55. Nd6 {[%emt 0:01:48]} hxg4 {[%emt 0:00:53]} 56. hxg4 {[%emt 0:00:09]} ({Worse is} 56. b7 Nxb7 57. Nxb7 gxh3 $11) 56... Bg3 {[%emt 0:00:19] [#]} 57. Nf6+ $1 {[%emt 0:00:07]} Kh6 $2 {[%emt 0:04:32] [#]} (57... Kg7) 58. g5+ $2 {[%emt 0:03:53]} Kxg5 $11 {[%emt 0:00:02] The position is equal.} 59. Nfe4+ {[%emt 0:00:17]} Kg4 {[%emt 0:01:38]} 60. Nxg3 {[%emt 0:00:35]} Nd7 $1 {[%emt 0:04:54] Weighted Error Value: White=0.23 (precise) /Black=0.23 (precise)} (60... Kxg3 $2 61. Ne4+ {[%mdl 64] Deflection, Promotion} Nxe4 62. b7 $18) 1/2-1/2

[Event "IX Iberoamericano Championship 2023"]
[Site "Panama City"]
[Date "2023.11.29"]
[Round "5.7"]
[White "Diaz Perez, Michel Alejandro"]
[Black "Duran Vega, Sergio"]
[Result "1-0"]
[ECO "B31"]
[WhiteElo "2459"]
[BlackElo "2392"]
[Annotator "TA"]
[PlyCount "143"]
[EventDate "2023.11.27"]
[EventType "swiss"]
[EventCountry "PAN"]
[SourceTitle "playchess.com"]
[Source "ChessBase"]
[SourceQuality "1"]
[TimeControl "5400+30"]

{[%evp 10,143,25,18,34,29,37,50,34,18,20,0,27,27,40,33,19,21,30,26,31,32,18,20,30,17,33,12,27,0,21,25,26,6,6,4,3,0,25,22,23,0,0,0,0,0,0,0,0,0,9,0,16,0,0,-6,0,0,0,3,4,0,0,0,0,0,0,0,0,0,0,0,0,0,0,0,0,0,0,0,0,0,0,0,0,0,0,0,0,0,0,0,0,0,0,0,0,0,0,0,0,0,0,0,0,0,0,0,0,0,0,0,0,0,0,0,27999,27999,27999,27999,27999,27999,27999,27999,27999,27999,27999,27999,27999,27999,27999,27999,27999,27999,27999,27999]} 1. e4 {[%emt 0:00:08]} c5 {[%emt 0:07:22]} 2. Nf3 {[%emt 0:00:05]} Nc6 {[%emt 0:00:01]} 3. Bb5 {[%emt 0:00:07]} g6 {[%emt 0:00:08]} 4. Bxc6 {[%emt 0:00:08]} dxc6 {[%emt 0:00:53]} 5. d3 {[%emt 0:00:03]} Bg7 {[%emt 0:00:11]} 6. h3 {[%emt 0:00:13]} Qc7 {[%emt 0:00:52] B31: Sicilian: 2...Nc6 3 Bb5 g6.} 7. Nc3 {[%emt 0:00:32]} h6 {[%emt 0:03:46]} 8. Be3 {[%emt 0:06:10]} b6 {[%emt 0:00:07] White is slightly better.} 9. Qd2 {[%emt 0:00:32][%cal Oe4e5]} e5 {[%emt 0:02:52]} 10. Nh2 {[%emt 0:05:59]} Be6 {[%emt 0:04:00]} 11. f4 {[%emt 0:06:35]} Ne7 {[%emt 0:14:18]} 12. Nf3 {[%emt 0:04:01]} exf4 {[%emt 0:00:19]} 13. Bxf4 {[%emt 0:00:03]} Qd7 {[%emt 0:00:06] [#]} 14. O-O-O $146 {[%emt 0:05:28]} ({Predecessor:} 14. a3 g5 15. Be5 f6 16. Bg3 O-O-O 17. O-O f5 18. exf5 Nxf5 19. Bh2 c4 20. Rae1 {½-½ Lavrencic,M (1939)-Pozun,M (2158) Otocec Krka Terme op 2021 (6)}) 14... g5 {[%emt 0:02:49]} 15. Be5 {[%emt 0:06:20]} Bxe5 {[%emt 0:01:44]} 16. Nxe5 {[%emt 0:00:02]} Qc7 {[%emt 0:00:13]} 17. Nf3 {[%emt 0:01:04]} Ng6 {[%emt 0:00:09]} 18. Kb1 {[%emt 0:01:53]} O-O-O {[%emt 0:06:42]} 19. Qf2 {[%emt 0:09:41]} Ne5 {[%emt 0:10:23]} 20. Rhf1 {[%emt 0:07:19]} Rhg8 {[%emt 0:03:27]} 21. Nxe5 {[%emt 0:03:15]} Qxe5 {[%emt 0:00:02]} 22. Qf6 {[%emt 0:00:34]} Qg3 {[%emt 0:02:12]} 23. Qf2 {[%emt 0:02:12]} Qe5 {[%emt 0:01:42]} (23... Qxf2 {simplifies} 24. Rxf2 h5 25. b3 h4) 24. Ne2 {[%emt 0:03:39]} c4 {[%emt 0:04:16]} 25. Qf6 {[%emt 0:03:03]} Qxf6 {[%emt 0:01:09]} 26. Rxf6 {[%emt 0:00:02]} cxd3 {[%emt 0:00:07]} 27. cxd3 {[%emt 0:00:19]} Rg6 {[%emt 0:00:39]} 28. Rf2 {[%emt 0:04:18]} c5 {[%emt 0:03:04]} 29. Kc2 {[%emt 0:04:22]} Rd7 {[%emt 0:13:02]} 30. Kc3 {[%emt 0:01:17]} Kd8 {[%emt 0:02:15]} (30... Bxa2 31. b3 $16) 31. a3 {[%emt 0:00:29]} a5 {[%emt 0:00:51]} 32. Rb1 {[%emt 0:07:09]} Ba2 {[%emt 0:02:46]} 33. Rd1 {[%emt 0:05:16]} Be6 {[%emt 0:00:02]} 34. d4 {[%emt 0:01:01]} cxd4+ {[%emt 0:00:06]} 35. Rxd4 {[%emt 0:00:02]} Ke7 {[%emt 0:01:34]} 36. Rxd7+ {[%emt 0:00:23]} Bxd7 $11 {[%emt 0:00:09][%mdl 4096] Endgame KRB-KRN} 37. Nd4 {[%emt 0:00:02]} Rf6 {[%emt 0:02:32]} 38. Nf5+ {[%emt 0:05:19]} Bxf5 {[%emt 0:01:04]} 39. Rxf5 {[%emt 0:00:01] KR-KR} Rc6+ {[%emt 0:05:28]} 40. Kd3 {[%emt 0:11:24]} Rc1 {[%emt 0:00:44]} 41. Rb5 {[%emt 0:00:00]} Rg1 {[%emt 0:00:34]} 42. g4 {[%emt 0:00:00]} Rg3+ {[%emt 0:00:36]} 43. Kd4 {[%emt 0:00:00]} Rxh3 {[%emt 0:00:42]} 44. Rxb6 {[%emt 0:00:00]} Rh4 {[%emt 0:02:02]} 45. Ke5 {[%emt 0:00:00]} Rxg4 {[%emt 0:00:49]} 46. Rxh6 {[%emt 0:00:00]} Rg2 {[%emt 0:02:01]} 47. Rb6 {[%emt 0:00:00]} Rf2 {[%emt 0:01:40]} 48. Rb7+ {[%emt 0:00:00]} Kf8 {[%emt 0:00:02]} 49. b4 {[%emt 0:01:46]} axb4 {[%emt 0:00:05]} 50. Rxb4 {[%emt 0:00:38]} Kg7 {[%emt 0:02:04]} 51. a4 {[%emt 0:00:32]} Kg6 {[%emt 0:00:19]} 52. a5 {[%emt 0:01:03]} Ra2 {[%emt 0:00:33]} 53. Rb6+ {[%emt 0:00:13]} Kg7 {[%emt 0:00:22]} 54. a6 {[%emt 0:00:33]} g4 {[%emt 0:00:59]} 55. Kf4 {[%emt 0:00:11]} Ra4 {[%emt 0:00:04]} 56. Kxg4 $2 {[%emt 0:01:09][%mdl 8192] [#]} (56. Kg3 $11) 56... Rxe4+ {[%emt 0:00:01]} 57. Kf5 {[%emt 0:00:07]} Ra4 {[%emt 0:00:08]} 58. Ke5 $2 {[%emt 0:00:01][%mdl 8192]} (58. Rc6 $11) 58... f6+ $2 {[%emt 0:01:07][%mdl 8192]} 59. Ke6 $2 {[%emt 0:00:08][%mdl 8192]} (59. Rxf6 {leads to mate.} Ra5+ 60. Ke6 Rxa6+ 61. Ke5 Rxf6 62. Kd5 Rf8 63. Ke4 Kf6 64. Kd5 Rd8+ 65. Kc5 Ke5 66. Kc4 Rd5 67. Kc3 Rd4 68. Kb2 Rd3 69. Kc1 Kd4 70. Kb2 Kc4 71. Kc2 Rd8 72. Kb2 Rd2+ 73. Kc1 Kc3 74. Kb1 Rd1+ 75. Ka2 Re1 76. Ka3 Ra1#) (59. Kf5 $11 Ra5+ 60. Ke4) 59... Kg6 {[%emt 0:01:05]} 60. Ke7 $2 {[%emt 0:00:19][%mdl 8192]} (60. Rc6 $11) 60... Re4+ {[%emt 0:01:11]} 61. Re6 {[%emt 0:00:04]} Rf4 $1 {[%emt 0:00:00]} 62. Rd6 $2 {[%emt 0:02:38][%mdl 8192]} (62. a7 $11 Ra4 63. Rxf6+ Kg5 64. Rf8 Rxa7+ 65. Ke6) 62... Kg5 $2 {[%emt 0:00:06][%mdl 8192]} (62... Re4+ $11 63. Re6 Rf4) 63. Rd5+ {[%emt 0:00:10] White mates.} f5 {[%emt 0:00:26] [#]} 64. Ra5 $1 {[%emt 0:00:24]} ({Inferior is} 64. a7 Ra4 65. Rd7 f4 $11) 64... Re4+ {[%emt 0:00:35]} 65. Kf7 {[%emt 0:00:29]} Rc4 {[%emt 0:00:48]} 66. a7 {[%emt 0:00:04]} Rc8 {[%emt 0:00:23]} 67. a8=Q (67. Ke6 Re8+ 68. Kd5 Ra8 $11) 67... Rxa8 {[%emt 0:00:02]} 68. Rxa8 {[%emt 0:00:11]} f4 {[%emt 0:00:07]} 69. Ke6 {[%emt 0:00:05]} f3 {[%emt 0:00:29]} 70. Ke5 {[%emt 0:00:41]} Kg4 {[%emt 0:00:01]} 71. Ke4 {[%emt 0:00:20]} f2 {[%emt 0:00:07]} 72. Rf8 {[%emt 0:00:02] Weighted Error Value: White=0.04 (flawless) /Black=0.02 (flawless)} 1-0

[Event "IX Iberoamericano Championship 2023"]
[Site "Panama City"]
[Date "2023.11.29"]
[Round "5.8"]
[White "Palma Villanueva, Miguel Ta"]
[Black "Matamoros Franco, Carlos S."]
[Result "1/2-1/2"]
[ECO "B13"]
[WhiteElo "2286"]
[BlackElo "2455"]
[Annotator "TA"]
[PlyCount "88"]
[EventDate "2023.11.27"]
[EventType "swiss"]
[EventCountry "PAN"]
[SourceTitle "playchess.com"]
[Source "ChessBase"]
[SourceQuality "1"]
[TimeControl "5400+30"]

{[%evp 36,88,8,9,18,18,18,15,18,0,0,0,0,0,0,0,0,-20,-13,-56,-11,-43,-10,-16,0,0,0,-4,0,0,0,0,0,0,0,-29,0,0,0,0,0,0,0,0,0,0,0,0,0,0,0,0,0,0,0]} 1. e4 {[%emt 0:00:03]} c6 {[%emt 0:00:14]} 2. d4 {[%emt 0:00:05]} d5 {[%emt 0:00:05]} 3. exd5 {[%emt 0:00:03]} cxd5 {[%emt 0:00:05]} 4. c4 {[%emt 0:00:03]} Nf6 {[%emt 0:00:21]} 5. Nc3 {[%emt 0:00:04]} Nc6 {[%emt 0:01:46]} 6. Nf3 {[%emt 0:00:04]} Bg4 {[%emt 0:00:42]} 7. cxd5 {[%emt 0:00:05]} Nxd5 {[%emt 0:00:08]} 8. Qb3 {[%emt 0:00:02]} Bxf3 {[%emt 0:00:41]} 9. gxf3 {[%emt 0:00:04]} e6 {[%emt 0:00:58]} 10. Qxb7 {[%emt 0:00:58]} Nxd4 {[%emt 0:00:16]} 11. Bb5+ {[%emt 0:00:03]} Nxb5 {[%emt 0:00:08]} 12. Qc6+ {[%emt 0:00:02]} Ke7 {[%emt 0:00:18]} 13. Qxb5 {[%emt 0:00:04]} Qd7 {[%emt 0:01:12]} 14. Nxd5+ {[%emt 0:00:43]} Qxd5 {[%emt 0:03:59]} 15. Bg5+ {[%emt 0:00:14]} f6 {[%emt 0:00:12]} 16. Qxd5 {[%emt 0:00:02]} exd5 {[%emt 0:00:05]} 17. Be3 {[%emt 0:00:03]} Ke6 {[%emt 0:06:40]} 18. O-O-O {[%emt 0:00:12]} Bb4 {[%emt 0:04:05]} 19. a3 {[%emt 0:00:04]} Ba5 {[%emt 0:33:11] B13: Caro-Kann: Exchange Variation and Panov-Botvinnik Attack.} 20. b4 {[%emt 0:00:15]} Bc7 {[%emt 0:00:18]} 21. Rhe1 {[%emt 0:04:52]} Rhd8 {[%emt 0:01:07]} 22. Bb6+ {[%emt 0:10:30]} Kf7 $1 {[%emt 0:00:17]} 23. Bxc7 {[%emt 0:15:32]} Rac8 {[%emt 0:00:14] [#]} 24. Kb2 $146 {[%emt 0:02:01]} ({Predecessor:} 24. Re3 Rxc7+ 25. Kb2 Rc4 26. Kb3 Rf4 27. Red3 Ke6 28. Ka4 g5 29. Re1+ Kf7 30. Red1 Ke6 31. Re1+ Kf7 {½-½ Silva Nazzari,R (2245)-Barboza,N URU-ch Uruguay 1987}) 24... Rxc7 $11 {[%emt 0:00:06][%mdl 4096] Endgame KRR-KRR} 25. Rd3 {[%emt 0:01:41]} g5 {[%emt 0:21:39]} 26. Kb3 {[%emt 0:11:41]} h5 {[%emt 0:07:05]} 27. Rd4 {[%emt 0:09:52]} Kg6 {[%emt 0:08:30]} 28. Re3 {[%emt 0:09:34]} Kf5 {[%emt 0:01:49]} 29. h3 {[%emt 0:07:57]} Rdd7 {[%emt 0:01:07]} 30. a4 {[%emt 0:04:48]} Rc1 {[%emt 0:00:37]} 31. f4 {[%emt 0:02:28]} g4 {[%emt 0:01:31]} 32. hxg4+ {[%emt 0:03:15]} hxg4 {[%emt 0:00:02]} 33. b5 {[%emt 0:01:09]} Rb1+ {[%emt 0:03:38]} 34. Ka3 {[%emt 0:02:13]} Rc7 {[%emt 0:00:53]} 35. Rg3 {[%emt 0:09:14]} Rc2 {[%emt 0:03:17]} (35... Rc4 $5 {[%cal Rc4d4]} 36. Rxd5+ Kxf4 $11) 36. f3 {[%emt 0:01:34] The position is equal.} gxf3 {[%emt 0:00:15]} 37. Rxf3 {[%emt 0:00:01]} Rc5 {[%emt 0:00:47]} 38. Rfd3 {[%emt 0:01:09]} Ke6 {[%emt 0:00:06]} 39. Re3+ {[%emt 0:00:12]} Kd6 {[%emt 0:00:23]} 40. Red3 {[%emt 0:03:18]} Rbc1 {[%emt 0:00:38]} 41. Kb3 {[%emt 0:00:54]} Rb1+ {[%emt 0:00:35]} 42. Ka3 {[%emt 0:00:11]} Rbc1 {[%emt 0:00:37]} 43. Kb3 {[%emt 0:00:05]} Rb1+ {[%emt 0:00:40]} 44. Ka3 {[%emt 0:00:20]} Rbc1 {[%emt 0:00:30] Weighted Error Value: White=0.05 (flawless) /Black=0.05 (flawless)} 1/2-1/2

[Event "IX Iberoamericano Championship 2023"]
[Site "Panama City"]
[Date "2023.11.29"]
[Round "5.9"]
[White "De La Riva Aguado, Oscar"]
[Black "Soto, Miguel Angel"]
[Result "1-0"]
[ECO "B76"]
[WhiteElo "2437"]
[BlackElo "2359"]
[Annotator "TA"]
[PlyCount "83"]
[EventDate "2023.11.27"]
[EventType "swiss"]
[EventCountry "PAN"]
[SourceTitle "playchess.com"]
[Source "ChessBase"]
[SourceQuality "1"]
[TimeControl "5400+30"]

{[%evp 29,83,55,73,79,76,78,81,77,85,58,48,52,74,65,90,89,139,136,195,199,277,303,296,313,266,192,268,281,359,362,634,641,600,595,591,586,810,802,1278,926,1602,1521,1761,1477,2585,2187,2884,2063,29973,29972,29988,29989,29989,29990,29990,29982]} 1. e4 {[%emt 0:00:03]} c5 {[%emt 0:03:40]} 2. Nf3 {[%emt 0:00:13]} d6 {[%emt 0:00:33]} 3. d4 {[%emt 0:01:50]} cxd4 {[%emt 0:00:36]} 4. Nxd4 {[%emt 0:00:08]} Nf6 {[%emt 0:00:19]} 5. Nc3 {[%emt 0:00:11]} g6 {[%emt 0:00:49]} 6. Be3 {[%emt 0:01:27]} Bg7 {[%emt 0:00:31]} 7. f3 {[%emt 0:00:09]} Nc6 {[%emt 0:00:45]} 8. Qd2 {[%emt 0:01:32]} O-O {[%emt 0:02:41]} 9. O-O-O {[%emt 0:02:06]} d5 {[%emt 0:01:28]} 10. exd5 {[%emt 0:01:04]} Nxd5 {[%emt 0:00:25]} 11. Nxc6 {[%emt 0:00:08]} bxc6 {[%emt 0:00:26]} 12. Bd4 {[%emt 0:00:07]} e5 {[%emt 0:01:18]} 13. Bc5 {[%emt 0:00:14]} Be6 {[%emt 0:01:21]} 14. Ne4 {[%emt 0:03:39]} Re8 {[%emt 0:03:34]} 15. h4 {[%emt 0:05:56][%cal Bh2h4,Bh4h5][%mdl 32]} h6 {[%emt 0:01:34]} 16. h5 {[%emt 0:10:04] hxg6 is the strong threat. B76: Sicilian Dragon: Yugoslav Attack, 9 g4 and 9 0-0-0.} g5 {[%emt 0:02:59]} 17. g4 {[%emt 0:01:09]} Qc7 {[%emt 0:05:04]} 18. Bc4 {[%emt 0:14:33] White is better.} Red8 {[%emt 0:11:41]} 19. Bb3 {[%emt 0:03:37] White is much more active.} a5 {[%emt 0:06:46]} 20. a4 {[%emt 0:07:59] [#]} Rab8 $146 {[%emt 0:07:37]} ({Predecessor:} 20... Nf4 21. Qe3 Bxb3 22. Qxb3 Ne2+ 23. Kb1 Nd4 24. Bxd4 exd4 25. Rd3 Rab8 26. Qc4 Rb4 27. Qc5 Rdb8 28. b3 Rxa4 29. Kb2 Rab4 30. Nxg5 R8b5 {0-1 Kujawski,A (2173)-Golubev,M (2461) Titled Tuesday intern op 15th Aug Late blitz 2023 (3)}) 21. Qe1 {[%emt 0:03:44]} Rb7 {[%emt 0:12:18] Black is on the road to losing.} 22. Rh2 {[%emt 0:02:50]} Rd7 {[%emt 0:04:11]} ({Black should try} 22... Kh8) 23. Rhd2 $16 {[%emt 0:01:37]} Qb8 {[%emt 0:02:13]} (23... Rxb3 $16 24. cxb3 f5) 24. Rd3 $1 $18 {[%emt 0:02:05]} Qd8 {[%emt 0:17:06] [#]} (24... Qa8 $142 25. Ba3 Nf4 26. Rxd7 Rxd7 27. Rxd7 Bxd7) 25. Ba3 $1 {[%emt 0:11:57]} Nf4 {[%emt 0:02:19]} 26. Rxd7 {[%emt 0:02:08]} Rxd7 {[%emt 0:00:12]} 27. Rxd7 {[%emt 0:01:05]} Qxd7 {[%emt 0:01:14]} (27... Bxd7 {is a better defense.} 28. Nd6 Ne6) 28. Bxe6 {[%emt 0:00:59]} (28. Qxa5 {leads to mate.} Ne2+ 29. Kb1 Qd1+ 30. Ka2 Nc1+ 31. Kb1 Nxb3+ 32. Ka2 Qa1#) 28... Qxe6 {[%emt 0:01:36]} 29. Qxa5 {[%emt 0:06:30]} Qc4 $2 {[%emt 0:01:03]} (29... Kh7 30. Qd8 f5) 30. Qd8+ {[%emt 0:03:43]} Kh7 {[%emt 0:00:24]} 31. b3 {[%emt 0:00:12]} Qf1+ {[%emt 0:05:58] [#]} 32. Qd1 $1 {[%emt 0:00:13]} Qg2 {[%emt 0:00:18]} 33. Kb1 {[%emt 0:00:37]} Ne2 {[%emt 0:01:34]} 34. Qd3 {[%emt 0:00:59] Nf6+ would kill now.} Kh8 {[%emt 0:01:39]} 35. a5 {[%emt 0:00:58] And now a6 would win.} Qg1+ {[%emt 0:01:13]} 36. Ka2 {[%emt 0:00:32]} Nd4 {[%emt 0:00:27]} 37. a6 {[%emt 0:01:15] Threatening mate with a7.} Qe1 {[%emt 0:00:23]} 38. Qc3 {[%emt 0:01:50]} Qe2 {[%emt 0:00:41]} 39. Qc4 {[%emt 0:00:58] White mates.} Qxf3 {[%emt 0:00:28]} 40. a7 {[%emt 0:00:21]} Qxe4 {[%emt 0:00:27]} 41. a8=Q+ {[%emt 0:00:08]} Kh7 {[%emt 0:00:05]} 42. Qe8 {[%emt 0:00:29] Weighted Error Value: White=0.07 (flawless) /Black=0.66} 1-0

[Event "IX Iberoamericano Championship 2023"]
[Site "Panama City"]
[Date "2023.11.29"]
[Round "5.10"]
[White "Almedina Ortiz, Edgardo J."]
[Black "Sanchez Alvarez, Roberto Carlos"]
[Result "0-1"]
[ECO "E35"]
[WhiteElo "2158"]
[BlackElo "2437"]
[Annotator "TA"]
[PlyCount "52"]
[EventDate "2023.11.27"]
[EventType "swiss"]
[EventCountry "PAN"]
[SourceTitle "playchess.com"]
[Source "ChessBase"]
[SourceQuality "1"]
[TimeControl "5400+30"]

{[%evp 20,52,2,0,0,0,0,0,0,-37,-41,-38,-24,-58,-54,-64,-64,-104,-110,-116,-100,-137,-135,-105,-15,-12,-13,-21,-18,-275,-294,-293,-293,-1085,-1068]} 1. d4 {[%emt 0:00:04]} Nf6 {[%emt 0:04:28]} 2. c4 {[%emt 0:00:11]} e6 {[%emt 0:00:13]} 3. Nc3 {[%emt 0:00:13]} Bb4 {[%emt 0:00:20]} 4. Qc2 {[%emt 0:00:10]} d5 {[%emt 0:00:54]} 5. cxd5 {[%emt 0:00:37]} exd5 {[%emt 0:00:13]} 6. Bg5 {[%emt 0:00:10]} h6 {[%emt 0:00:44]} 7. Bxf6 {[%emt 0:00:13]} Qxf6 {[%emt 0:00:37]} 8. a3 {[%emt 0:00:21]} Bxc3+ {[%emt 0:00:08]} 9. Qxc3 {[%emt 0:00:08]} O-O {[%emt 0:00:09]} 10. e3 {[%emt 0:00:14]} Bf5 {[%emt 0:01:19]} 11. Nf3 {[%emt 0:01:49]} Nd7 {[%emt 0:00:12] E35: Nimzo-Indian: Classical: 4...d5 5 cxd5 exd5.} 12. Be2 {[%emt 0:06:19]} Rfc8 {[%emt 0:08:33]} 13. O-O {[%emt 0:03:27]} c5 {[%emt 0:01:41] The position is equal.} 14. Rac1 {[%emt 0:09:40][%cal Rd4c5]} c4 {[%emt 0:02:54]} 15. Ne5 {[%emt 0:00:09] [#]} Qe7 $146 {[%emt 0:05:34]} ({Predecessor:} 15... b5 16. g4 Nxe5 17. dxe5 Qg6 18. f3 a5 19. Rf2 Rcb8 20. Qd4 Be6 21. Bd1 f6 {0-1 Kholopov,A (2325)-Goganov,A (2591) Moscow op-A 2016 (1)}) 16. Nxd7 {[%emt 0:12:39]} Qxd7 {[%emt 0:00:41]} 17. b3 {[%emt 0:06:54]} b5 $1 {[%emt 0:03:26]} 18. bxc4 {[%emt 0:00:07]} bxc4 {[%emt 0:00:36]} 19. f3 {[%emt 0:00:12][%cal Oe3e4]} Rab8 {[%emt 0:17:22][%cal Ba8b8,Bb8b3,Bb3b2,Bb2d2][%mdl 32] aiming for ...Rb3.} 20. e4 {[%emt 0:15:37]} Rb3 {[%emt 0:21:39]} 21. Qd2 {[%emt 0:12:28]} c3 {[%emt 0:04:04] Black is more active.} ({Stronger than} 21... dxe4 22. Bxc4 e3 23. Qa5 $15) (21... Bg6 $17 22. Rc3 dxe4 23. fxe4 Rxc3 24. Qxc3 Bxe4 25. Bxc4 Bd5) 22. Qd1 $11 {[%emt 0:03:07]} Rb2 $36 {[%emt 0:00:02][%mdl 2048] White is under pressure.} 23. exf5 {[%emt 0:01:45] [#] And now Rf2 would win.} Rd2 $1 {[%emt 0:00:13]} 24. Qe1 {[%emt 0:00:34][%mdl 8192]} (24. Qb3 $1 $11 {and White stays safe.} Rxe2 25. Rxc3) 24... Re8 $19 {[%emt 0:00:11]} 25. Rf2 {[%emt 0:00:33]} (25. Rxc3 $2 {perishes.} Rexe2 $19) 25... Qa4 {[%emt 0:00:11]} 26. Rd1 $2 {[%emt 0:05:16] [#]} (26. Rxc3 Qxd4 27. Qxd2 {[%mdl 64] Remove Defender} Qxd2 28. Rd3 Qc1+ 29. Bf1) 26... Rexe2 $1 {[%emt 0:00:36][%mdl 512] Weighted Error Value: White=0.65/Black=0.11 (very precise)} 0-1